[Event "Titled Tuesday Blitz August 02 Late 2022"]
[White "Culum, Sanjin"]
[Black "Koelle, Tobias"]
[WhiteFideId "14420937"]
[BlackFideId "16207378"]
[WhiteElo "2013"]
[BlackElo "2541"]
[Result "0-1"]
[Round "10"]
[TimeControl "180+1"]
[Date "2022.08.02"]
[WhiteClock "0:00:14"]
[BlackClock "0:01:56"]

1. Nf3 {[%clk 0:03:00]}  g6 {[%clk 0:03:00]} 2. b3 {[%clk 0:03:01]}  Bg7 {[%clk 0:03:00]} 3. d4 {[%clk 0:03:01]}  c5 {[%clk 0:02:59]} 4. e3 {[%clk 0:03:00]}  cxd4 {[%clk 0:03:00]} 5. exd4 {[%clk 0:03:01]}  Nf6 {[%clk 0:03:00]} 6. Bb2 {[%clk 0:03:01]}  O-O {[%clk 0:03:01]} 7. Be2 {[%clk 0:03:01]}  b6 {[%clk 0:03:02]} 8. O-O {[%clk 0:03:02]}  Bb7 {[%clk 0:03:03]} 9. Nbd2 {[%clk 0:03:01]}  d6 {[%clk 0:03:04]} 10. c4 {[%clk 0:03:01]}  Nbd7 {[%clk 0:03:05]} 11. Bd3 {[%clk 0:03:01]}  Rc8 {[%clk 0:03:06]} 12. Re1 {[%clk 0:03:00]}  Re8 {[%clk 0:03:05]} 13. d5 {[%clk 0:02:58]}  Nc5 {[%clk 0:02:59]} 14. Bc2 {[%clk 0:02:58]}  Rc7 {[%clk 0:02:58]} 15. Nd4 {[%clk 0:02:58]}  Qa8 {[%clk 0:02:57]} 16. b4 {[%clk 0:02:52]}  Ncd7 {[%clk 0:02:44]} 17. Ba4 {[%clk 0:02:50]}  a6 {[%clk 0:02:35]} 18. Bc6 {[%clk 0:01:54]}  b5 {[%clk 0:02:27]} 19. cxb5 {[%clk 0:01:52]}  Nxd5 {[%clk 0:02:27]} 20. Qb3 {[%clk 0:01:25]}  axb5 {[%clk 0:02:11]} 21. Qxd5 {[%clk 0:00:44]}  Bxc6 {[%clk 0:02:09]} 22. Nxc6 {[%clk 0:00:43]}  Qxc6 {[%clk 0:02:08]} 23. Qxc6 {[%clk 0:00:37]}  Rxc6 {[%clk 0:02:09]} 24. Bxg7 {[%clk 0:00:36]}  Kxg7 {[%clk 0:02:10]} 25. Rac1 {[%clk 0:00:34]}  Rxc1 {[%clk 0:02:09]} 26. Rxc1 {[%clk 0:00:35]}  Ra8 {[%clk 0:02:08]} 27. Rc2 {[%clk 0:00:35]}  Nb6 {[%clk 0:02:07]} 28. Nb3 {[%clk 0:00:35]}  Nd5 {[%clk 0:02:06]} 29. Nd4 {[%clk 0:00:30]}  Nxb4 {[%clk 0:02:06]} 30. Rb2 {[%clk 0:00:30]}  Rxa2 {[%clk 0:02:04]} 31. Rxa2 {[%clk 0:00:29]}  Nxa2 {[%clk 0:02:05]} 32. Nxb5 {[%clk 0:00:30]}  Nb4 {[%clk 0:02:05]} 33. Kf1 {[%clk 0:00:30]}  Nd3 {[%clk 0:02:04]} 34. Ke2 {[%clk 0:00:30]}  Nc5 {[%clk 0:02:05]} 35. Ke3 {[%clk 0:00:29]}  Kf6 {[%clk 0:02:06]} 36. Nc7 {[%clk 0:00:29]}  e6 {[%clk 0:02:02]} 37. Nb5 {[%clk 0:00:29]}  Ke7 {[%clk 0:02:01]} 38. f4 {[%clk 0:00:29]}  Nd7 {[%clk 0:02:02]} 39. Nd4 {[%clk 0:00:28]}  Nf6 {[%clk 0:02:02]} 40. Kf3 {[%clk 0:00:24]}  Nd5 {[%clk 0:02:02]} 41. Ke4 {[%clk 0:00:23]}  f5+ {[%clk 0:02:02]} 42. Kf3 {[%clk 0:00:23]}  Nxf4 {[%clk 0:01:56]} 43. Nc6+ {[%clk 0:00:13]}  Kd7 {[%clk 0:01:54]} 44. Nb8+ {[%clk 0:00:13]}  Kc7 {[%clk 0:01:53]} 45. Na6+ {[%clk 0:00:13]}  Kb7 {[%clk 0:01:53]} 46. Nb8 {[%clk 0:00:14]}  Kxb8 {[%clk 0:01:50]} 47. Kxf4 {[%clk 0:00:14]}  Kc7 {[%clk 0:01:51]} 48. Kg5 {[%clk 0:00:14]}  d5 {[%clk 0:01:51]} 49. h4 {[%clk 0:00:15]}  d4 {[%clk 0:01:51]} 50. Kf4 {[%clk 0:00:14]}  e5+ {[%clk 0:01:52]} 51. Kf3 {[%clk 0:00:13]}  d3 {[%clk 0:01:53]} 52. Ke3 {[%clk 0:00:14]}  e4 {[%clk 0:01:53]} 53. g4 {[%clk 0:00:14]}  Kd6 {[%clk 0:01:54]} 54. h5 {[%clk 0:00:14]}  Ke5 {[%clk 0:01:54]} 55. hxg6 {[%clk 0:00:14]}  hxg6 {[%clk 0:01:55]} 56. gxf5 {[%clk 0:00:14]}  gxf5 {[%clk 0:01:56]} 0-1


[Site "https://www.chess.com"]

[Event "Titled Tuesday Blitz August 02 Late 2022"]
[White "Djordjevic, Vuk"]
[Black "Ovchinnikov, Vsevolod"]
[WhiteFideId "902098"]
[BlackFideId "24176842"]
[WhiteElo "2456"]
[BlackElo "2376"]
[Result "1-0"]
[Round "10"]
[TimeControl "180+1"]
[Date "2022.08.02"]
[WhiteClock "0:00:05"]
[BlackClock "0:00:07"]

1. d4 {[%clk 0:03:00]}  Nf6 {[%clk 0:02:59]} 2. Bg5 {[%clk 0:03:01]}  d5 {[%clk 0:02:58]} 3. Bxf6 {[%clk 0:03:01]}  gxf6 {[%clk 0:02:57]} 4. e3 {[%clk 0:03:02]}  h5 {[%clk 0:02:53]} 5. c4 {[%clk 0:03:01]}  dxc4 {[%clk 0:02:42]} 6. Bxc4 {[%clk 0:03:02]}  e6 {[%clk 0:02:41]} 7. Nf3 {[%clk 0:03:01]}  b6 {[%clk 0:02:14]} 8. Nc3 {[%clk 0:03:00]}  Bb7 {[%clk 0:02:13]} 9. d5 {[%clk 0:03:00]}  Qd7 {[%clk 0:01:25]} 10. Qb3 {[%clk 0:02:26]}  e5 {[%clk 0:00:55]} 11. Rd1 {[%clk 0:02:17]}  a6 {[%clk 0:00:50]} 12. a4 {[%clk 0:01:47]}  Bd6 {[%clk 0:00:42]} 13. Ne4 {[%clk 0:01:47]}  Qe7 {[%clk 0:00:35]} 14. Nh4 {[%clk 0:01:45]}  Bc8 {[%clk 0:00:35]} 15. Ng3 {[%clk 0:01:45]}  Qd8 {[%clk 0:00:28]} 16. O-O {[%clk 0:01:44]}  Nd7 {[%clk 0:00:28]} 17. Qc2 {[%clk 0:01:41]}  Nf8 {[%clk 0:00:25]} 18. Ngf5 {[%clk 0:01:34]}  Rg8 {[%clk 0:00:22]} 19. Be2 {[%clk 0:01:27]}  Ng6 {[%clk 0:00:17]} 20. Nh6 {[%clk 0:01:01]}  Rg7 {[%clk 0:00:03]} 21. Nxf7 {[%clk 0:00:35]}  Kxf7 {[%clk 0:00:04]} 22. Bxh5 {[%clk 0:00:35]}  f5 {[%clk 0:00:03]} 23. Nxf5 {[%clk 0:00:19]}  Bxf5 {[%clk 0:00:03]} 24. Qxf5+ {[%clk 0:00:19]}  Qf6 {[%clk 0:00:04]} 25. Qg4 {[%clk 0:00:19]}  Rh8 {[%clk 0:00:04]} 26. f4 {[%clk 0:00:20]}  exf4 {[%clk 0:00:03]} 27. exf4 {[%clk 0:00:16]}  Kg8 {[%clk 0:00:04]} 28. Bxg6 {[%clk 0:00:04]}  Rxg6 {[%clk 0:00:05]} 29. Qf3 {[%clk 0:00:04]}  Kg7 {[%clk 0:00:05]} 30. g3 {[%clk 0:00:05]}  Rgh6 {[%clk 0:00:05]} 31. h4 {[%clk 0:00:05]}  Qf7 {[%clk 0:00:05]} 32. Rf2 {[%clk 0:00:04]}  Rg6 {[%clk 0:00:06]} 33. Kf1 {[%clk 0:00:04]}  Rhh6 {[%clk 0:00:06]} 34. Re2 {[%clk 0:00:04]}  Kh7 {[%clk 0:00:06]} 35. Rd3 {[%clk 0:00:04]}  Rf6 {[%clk 0:00:07]} 36. Qe4+ {[%clk 0:00:04]}  Rhg6 {[%clk 0:00:07]} 37. h5 {[%clk 0:00:04]}  Rf5 {[%clk 0:00:07]} 38. hxg6+ {[%clk 0:00:05]}  Qxg6 {[%clk 0:00:08]} 39. Rde3 {[%clk 0:00:03]}  Kg7 {[%clk 0:00:09]} 40. Qe6 {[%clk 0:00:03]}  Qg4 {[%clk 0:00:08]} 41. Qd7+ {[%clk 0:00:03]}  Kh6 {[%clk 0:00:07]} 42. Re6+ {[%clk 0:00:03]}  Kh5 {[%clk 0:00:07]} 43. Rh2+ {[%clk 0:00:04]}  Qh3+ {[%clk 0:00:07]} 44. Rxh3+ {[%clk 0:00:04]}  Kg4 {[%clk 0:00:08]} 45. Kg2 {[%clk 0:00:04]}  Rxf4 {[%clk 0:00:07]} 46. Rg6# {[%clk 0:00:05]} 1-0


[Site "https://www.chess.com"]

[Event "Titled Tuesday Blitz August 02 Late 2022"]
[White "Ekdyshman, Mikhail"]
[Black "Bogaudinov, Rushan"]
[WhiteFideId "4149416"]
[BlackFideId "4129288"]
[WhiteElo "2146"]
[BlackElo "2010"]
[Result "1-0"]
[Round "10"]
[TimeControl "180+1"]
[Date "2022.08.02"]
[WhiteClock "0:02:06"]
[BlackClock "0:01:34"]

1. e4 {[%clk 0:03:00]}  a6 {[%clk 0:02:59]} 2. c4 {[%clk 0:03:00]}  e6 {[%clk 0:02:58]} 3. d4 {[%clk 0:03:00]}  d6 {[%clk 0:02:57]} 4. Nc3 {[%clk 0:03:00]}  Nf6 {[%clk 0:02:57]} 5. Nf3 {[%clk 0:03:00]}  Be7 {[%clk 0:02:57]} 6. Bd3 {[%clk 0:02:58]}  c5 {[%clk 0:02:54]} 7. d5 {[%clk 0:02:57]}  exd5 {[%clk 0:02:48]} 8. exd5 {[%clk 0:02:57]}  Bg4 {[%clk 0:02:48]} 9. h3 {[%clk 0:02:54]}  Bh5 {[%clk 0:02:47]} 10. O-O {[%clk 0:02:51]}  Nbd7 {[%clk 0:02:47]} 11. Bf4 {[%clk 0:02:51]}  O-O {[%clk 0:02:45]} 12. Re1 {[%clk 0:02:51]}  Re8 {[%clk 0:02:43]} 13. a4 {[%clk 0:02:47]}  Bf8 {[%clk 0:02:40]} 14. Rxe8 {[%clk 0:02:46]}  Qxe8 {[%clk 0:02:40]} 15. g4 {[%clk 0:02:41]}  Bg6 {[%clk 0:02:38]} 16. Qd2 {[%clk 0:02:34]}  Qd8 {[%clk 0:02:14]} 17. Re1 {[%clk 0:02:30]}  Qa5 {[%clk 0:02:09]} 18. Ng5 {[%clk 0:02:21]}  Re8 {[%clk 0:01:55]} 19. Rxe8 {[%clk 0:02:20]}  Nxe8 {[%clk 0:01:55]} 20. Bxg6 {[%clk 0:02:16]}  hxg6 {[%clk 0:01:53]} 21. Qe3 {[%clk 0:02:12]}  Qd8 {[%clk 0:01:42]} 22. Nxf7 {[%clk 0:02:07]}  Kxf7 {[%clk 0:01:34]} 23. Qe6# {[%clk 0:02:06]} 1-0


[Site "https://www.chess.com"]

[Event "Titled Tuesday Blitz August 02 Late 2022"]
[White "Ernst, Sipke"]
[Black "Vasquez Schroeder, Rodrigo"]
[WhiteFideId "1004689"]
[BlackFideId "3400042"]
[WhiteElo "2436"]
[BlackElo "2567"]
[Result "0-1"]
[Round "10"]
[TimeControl "180+1"]
[Date "2022.08.02"]
[WhiteClock "0:00:05"]
[BlackClock "0:01:00"]

1. d4 {[%clk 0:03:00]}  d5 {[%clk 0:02:58]} 2. c4 {[%clk 0:03:01]}  c6 {[%clk 0:02:59]} 3. cxd5 {[%clk 0:03:01]}  cxd5 {[%clk 0:02:59]} 4. Bf4 {[%clk 0:03:01]}  Nc6 {[%clk 0:02:59]} 5. e3 {[%clk 0:03:00]}  Nf6 {[%clk 0:02:59]} 6. Nc3 {[%clk 0:03:00]}  Bf5 {[%clk 0:02:59]} 7. Nf3 {[%clk 0:03:01]}  e6 {[%clk 0:02:56]} 8. Bb5 {[%clk 0:02:55]}  Nd7 {[%clk 0:02:52]} 9. O-O {[%clk 0:02:54]}  Rc8 {[%clk 0:02:51]} 10. Qa4 {[%clk 0:02:49]}  a6 {[%clk 0:02:51]} 11. Bxc6 {[%clk 0:02:47]}  Rxc6 {[%clk 0:02:52]} 12. Rfc1 {[%clk 0:02:47]}  Be7 {[%clk 0:02:51]} 13. Ne2 {[%clk 0:02:40]}  Qb6 {[%clk 0:02:51]} 14. Rxc6 {[%clk 0:02:39]}  bxc6 {[%clk 0:02:51]} 15. Qb3 {[%clk 0:02:16]}  Qxb3 {[%clk 0:02:44]} 16. axb3 {[%clk 0:02:16]}  Bd3 {[%clk 0:02:45]} 17. Nc3 {[%clk 0:01:54]}  f6 {[%clk 0:02:40]} 18. Ne1 {[%clk 0:01:53]}  Bb5 {[%clk 0:02:29]} 19. Nxb5 {[%clk 0:01:52]}  axb5 {[%clk 0:02:29]} 20. Ra8+ {[%clk 0:01:32]}  Bd8 {[%clk 0:02:29]} 21. Rc8 {[%clk 0:01:32]}  e5 {[%clk 0:02:22]} 22. dxe5 {[%clk 0:01:24]}  fxe5 {[%clk 0:02:09]} 23. Bg5 {[%clk 0:01:24]}  Nf6 {[%clk 0:02:10]} 24. Rxc6 {[%clk 0:01:17]}  Kd7 {[%clk 0:02:10]} 25. Rc5 {[%clk 0:01:16]}  Bb6 {[%clk 0:02:07]} 26. Rc1 {[%clk 0:00:51]}  Ne4 {[%clk 0:02:04]} 27. Bh4 {[%clk 0:00:46]}  Ra8 {[%clk 0:01:37]} 28. Nd3 {[%clk 0:00:43]}  Kd6 {[%clk 0:01:36]} 29. Kf1 {[%clk 0:00:42]}  Ra2 {[%clk 0:01:32]} 30. Bg3 {[%clk 0:00:35]}  Nxg3+ {[%clk 0:01:32]} 31. hxg3 {[%clk 0:00:34]}  e4 {[%clk 0:01:26]} 32. Nb4 {[%clk 0:00:34]}  Rxb2 {[%clk 0:01:26]} 33. Rd1 {[%clk 0:00:34]}  Kc5 {[%clk 0:01:14]} 34. Nxd5 {[%clk 0:00:31]}  Rxb3 {[%clk 0:01:14]} 35. Nxb6 {[%clk 0:00:17]}  Kxb6 {[%clk 0:01:14]} 36. Rd4 {[%clk 0:00:18]}  Rb1+ {[%clk 0:01:13]} 37. Ke2 {[%clk 0:00:18]}  Rb2+ {[%clk 0:01:14]} 38. Kd1 {[%clk 0:00:18]}  Rb1+ {[%clk 0:01:14]} 39. Kc2 {[%clk 0:00:18]}  Rf1 {[%clk 0:01:14]} 40. Rd2 {[%clk 0:00:13]}  Kc5 {[%clk 0:01:14]} 41. Kb2 {[%clk 0:00:13]}  Kc4 {[%clk 0:01:10]} 42. g4 {[%clk 0:00:13]}  g5 {[%clk 0:01:08]} 43. g3 {[%clk 0:00:10]}  h6 {[%clk 0:01:08]} 44. Rd4+ {[%clk 0:00:10]}  Kc5 {[%clk 0:01:08]} 45. Rxe4 {[%clk 0:00:06]}  Rxf2+ {[%clk 0:01:08]} 46. Kc3 {[%clk 0:00:06]}  Rf3 {[%clk 0:01:06]} 47. Re6 {[%clk 0:00:06]}  Kd5 {[%clk 0:01:05]} 48. Rxh6 {[%clk 0:00:04]}  Rxe3+ {[%clk 0:01:06]} 49. Kb4 {[%clk 0:00:04]}  Rxg3 {[%clk 0:01:06]} 50. Kxb5 {[%clk 0:00:04]}  Rxg4 {[%clk 0:01:07]} 51. Rg6 {[%clk 0:00:04]}  Rg3 {[%clk 0:01:03]} 52. Rg8 {[%clk 0:00:04]}  g4 {[%clk 0:01:01]} 53. Kb4 {[%clk 0:00:04]}  Kd4 {[%clk 0:01:02]} 54. Rg7 {[%clk 0:00:03]}  Rg2 {[%clk 0:01:01]} 55. Rd7+ {[%clk 0:00:02]}  Ke3 {[%clk 0:01:01]} 56. Kc3 {[%clk 0:00:03]}  Rg1 {[%clk 0:01:01]} 57. Re7+ {[%clk 0:00:04]}  Kf3 {[%clk 0:01:01]} 58. Kd2 {[%clk 0:00:04]}  g3 {[%clk 0:01:00]} 59. Rf7+ {[%clk 0:00:05]}  Kg2 {[%clk 0:01:00]} 0-1


[Site "https://www.chess.com"]

[Event "Titled Tuesday Blitz August 02 Late 2022"]
[White "Grischuk, Alexander"]
[Black "Shimanov, Aleksandr"]
[WhiteFideId "4126025"]
[BlackFideId "4198603"]
[WhiteElo "2762"]
[BlackElo "2605"]
[Result "1-0"]
[Round "10"]
[TimeControl "180+1"]
[Date "2022.08.02"]
[WhiteClock "0:00:04"]
[BlackClock "0:00:01"]

1. d4 {[%clk 0:03:00]}  Nf6 {[%clk 0:02:57]} 2. c4 {[%clk 0:03:01]}  g6 {[%clk 0:02:48]} 3. Nc3 {[%clk 0:03:01]}  Bg7 {[%clk 0:02:48]} 4. e4 {[%clk 0:03:01]}  d6 {[%clk 0:02:48]} 5. Nf3 {[%clk 0:03:02]}  O-O {[%clk 0:02:48]} 6. h3 {[%clk 0:03:02]}  Na6 {[%clk 0:02:48]} 7. Be3 {[%clk 0:03:02]}  e5 {[%clk 0:02:48]} 8. d5 {[%clk 0:03:02]}  Nc5 {[%clk 0:02:48]} 9. Nd2 {[%clk 0:02:57]}  a5 {[%clk 0:02:48]} 10. g4 {[%clk 0:02:49]}  c6 {[%clk 0:02:46]} 11. Be2 {[%clk 0:02:45]}  a4 {[%clk 0:02:46]} 12. h4 {[%clk 0:02:34]}  Qa5 {[%clk 0:02:30]} 13. g5 {[%clk 0:02:34]}  Nfd7 {[%clk 0:02:21]} 14. a3 {[%clk 0:02:32]}  f5 {[%clk 0:02:15]} 15. f3 {[%clk 0:02:10]}  fxe4 {[%clk 0:02:10]} 16. fxe4 {[%clk 0:02:06]}  Rf4 {[%clk 0:02:10]} 17. Qc2 {[%clk 0:02:01]}  cxd5 {[%clk 0:01:47]} 18. Nxd5 {[%clk 0:01:23]}  Rxe4 {[%clk 0:01:39]} 19. O-O-O {[%clk 0:01:11]}  Rxe3 {[%clk 0:01:18]} 20. Nxe3 {[%clk 0:01:12]}  Nf8 {[%clk 0:01:12]} 21. Kb1 {[%clk 0:00:58]}  Nfe6 {[%clk 0:01:09]} 22. Bf3 {[%clk 0:00:26]}  Nd4 {[%clk 0:01:06]} 23. Bd5+ {[%clk 0:00:27]}  Kh8 {[%clk 0:01:05]} 24. Qc3 {[%clk 0:00:25]}  Qd8 {[%clk 0:00:50]} 25. h5 {[%clk 0:00:20]}  Qxg5 {[%clk 0:00:24]} 26. Rdg1 {[%clk 0:00:20]}  Bf5+ {[%clk 0:00:24]} 27. Ka2 {[%clk 0:00:20]}  Qf6 {[%clk 0:00:20]} 28. Nxf5 {[%clk 0:00:17]}  gxf5 {[%clk 0:00:15]} 29. h6 {[%clk 0:00:17]}  Bxh6 {[%clk 0:00:15]} 30. Qh3 {[%clk 0:00:18]}  e4 {[%clk 0:00:03]} 31. Qxh6 {[%clk 0:00:14]}  Qxh6 {[%clk 0:00:04]} 32. Rxh6 {[%clk 0:00:15]}  e3 {[%clk 0:00:04]} 33. Nf3 {[%clk 0:00:11]}  Ndb3 {[%clk 0:00:01]} 34. Ng5 {[%clk 0:00:03]}  Kg7 {[%clk 0:00:01]} 35. Nf7+ {[%clk 0:00:03]}  Kf8 {[%clk 0:00:01]} 36. Nxd6 {[%clk 0:00:04]}  e2 {[%clk 0:00:01]} 37. Nxf5 {[%clk 0:00:04]} 1-0


[Site "https://www.chess.com"]

[Event "Titled Tuesday Blitz August 02 Late 2022"]
[White "Gschnitzer, Adrian"]
[Black "Pakleza, Zbigniew"]
[WhiteFideId "1270337"]
[BlackFideId "1119290"]
[WhiteElo "2294"]
[BlackElo "2467"]
[Result "0-1"]
[Round "10"]
[TimeControl "180+1"]
[Date "2022.08.02"]
[WhiteClock "0:00:03"]
[BlackClock "0:00:04"]

1. d4 {[%clk 0:03:00]}  d6 {[%clk 0:02:58]} 2. e4 {[%clk 0:03:00]}  Nf6 {[%clk 0:02:59]} 3. Nc3 {[%clk 0:03:00]}  c6 {[%clk 0:02:59]} 4. Nf3 {[%clk 0:03:00]}  Bg4 {[%clk 0:02:59]} 5. Be2 {[%clk 0:03:00]}  e6 {[%clk 0:02:59]} 6. h3 {[%clk 0:02:59]}  Bh5 {[%clk 0:03:00]} 7. Bf4 {[%clk 0:02:57]}  d5 {[%clk 0:02:58]} 8. exd5 {[%clk 0:02:51]}  cxd5 {[%clk 0:02:58]} 9. Bb5+ {[%clk 0:02:46]}  Nc6 {[%clk 0:02:43]} 10. g4 {[%clk 0:02:44]}  Bg6 {[%clk 0:02:43]} 11. Ne5 {[%clk 0:02:44]}  Qb6 {[%clk 0:02:41]} 12. a4 {[%clk 0:02:37]}  Bb4 {[%clk 0:02:32]} 13. Qe2 {[%clk 0:02:30]}  a6 {[%clk 0:02:21]} 14. Bxc6+ {[%clk 0:02:24]}  bxc6 {[%clk 0:02:22]} 15. h4 {[%clk 0:02:20]}  Qxd4 {[%clk 0:02:14]} 16. h5 {[%clk 0:02:12]}  Qxf4 {[%clk 0:01:43]} 17. hxg6 {[%clk 0:02:08]}  fxg6 {[%clk 0:01:26]} 18. Nxg6 {[%clk 0:02:03]}  Qxg4 {[%clk 0:00:22]} 19. Qxg4 {[%clk 0:02:02]}  Nxg4 {[%clk 0:00:23]} 20. Nxh8 {[%clk 0:02:02]}  Nf6 {[%clk 0:00:23]} 21. Ng6 {[%clk 0:01:58]}  hxg6 {[%clk 0:00:22]} 22. Rh8+ {[%clk 0:01:57]}  Bf8 {[%clk 0:00:23]} 23. O-O-O {[%clk 0:01:53]}  Kf7 {[%clk 0:00:21]} 24. a5 {[%clk 0:01:45]}  Rb8 {[%clk 0:00:21]} 25. Rdh1 {[%clk 0:01:28]}  g5 {[%clk 0:00:16]} 26. f3 {[%clk 0:01:21]}  Rb4 {[%clk 0:00:16]} 27. Rg1 {[%clk 0:01:21]}  Bd6 {[%clk 0:00:14]} 28. Kb1 {[%clk 0:01:13]}  Be5 {[%clk 0:00:09]} 29. Nd1 {[%clk 0:01:09]}  g4 {[%clk 0:00:07]} 30. fxg4 {[%clk 0:01:05]}  Rb5 {[%clk 0:00:08]} 31. g5 {[%clk 0:00:49]}  Ne4 {[%clk 0:00:08]} 32. g6+ {[%clk 0:00:49]}  Ke7 {[%clk 0:00:08]} 33. c3 {[%clk 0:00:41]}  Rxa5 {[%clk 0:00:07]} 34. Kc2 {[%clk 0:00:24]}  c5 {[%clk 0:00:08]} 35. Rf1 {[%clk 0:00:23]}  Bf6 {[%clk 0:00:06]} 36. Nf2 {[%clk 0:00:20]}  Ng3 {[%clk 0:00:05]} 37. Rg1 {[%clk 0:00:18]}  Nf5 {[%clk 0:00:05]} 38. Ng4 {[%clk 0:00:17]}  d4 {[%clk 0:00:05]} 39. Nxf6 {[%clk 0:00:17]}  Kxf6 {[%clk 0:00:06]} 40. Rf8+ {[%clk 0:00:17]}  Ke7 {[%clk 0:00:03]} 41. Rf7+ {[%clk 0:00:17]}  Kd6 {[%clk 0:00:04]} 42. Re1 {[%clk 0:00:16]}  dxc3 {[%clk 0:00:03]} 43. Kxc3 {[%clk 0:00:16]}  Ra4 {[%clk 0:00:03]} 44. b3 {[%clk 0:00:15]}  Rh4 {[%clk 0:00:03]} 45. Rd1+ {[%clk 0:00:15]}  Ke5 {[%clk 0:00:04]} 46. Re1+ {[%clk 0:00:14]}  Kd6 {[%clk 0:00:04]} 47. Ra7 {[%clk 0:00:12]}  Rg4 {[%clk 0:00:04]} 48. Rxa6+ {[%clk 0:00:12]}  Kd5 {[%clk 0:00:05]} 49. Rexe6 {[%clk 0:00:12]}  Rg3+ {[%clk 0:00:05]} 50. Kb2 {[%clk 0:00:12]}  Rg2+ {[%clk 0:00:04]} 51. Ka3 {[%clk 0:00:12]}  Rg3 {[%clk 0:00:04]} 52. Rab6 {[%clk 0:00:11]}  Rf3 {[%clk 0:00:03]} 53. Ka4 {[%clk 0:00:11]}  Rf1 {[%clk 0:00:03]} 54. Kb5 {[%clk 0:00:11]}  Nd4+ {[%clk 0:00:03]} 55. Ka6 {[%clk 0:00:10]}  Ra1+ {[%clk 0:00:03]} 56. Kb7 {[%clk 0:00:09]}  Nxe6 {[%clk 0:00:04]} 57. b4 {[%clk 0:00:10]}  c4 {[%clk 0:00:04]} 58. b5 {[%clk 0:00:09]}  Rb1 {[%clk 0:00:04]} 59. Ka7 {[%clk 0:00:05]}  c3 {[%clk 0:00:03]} 60. Rc6 {[%clk 0:00:05]}  Nc5 {[%clk 0:00:04]} 61. Rc7 {[%clk 0:00:04]}  c2 {[%clk 0:00:04]} 62. Rxg7 {[%clk 0:00:03]}  c1=Q {[%clk 0:00:04]} 63. b6 {[%clk 0:00:03]}  Ra1+ {[%clk 0:00:04]} 64. Kb8 {[%clk 0:00:03]}  Qa3 {[%clk 0:00:04]} 65. Ra7 {[%clk 0:00:03]}  Qb2 {[%clk 0:00:03]} 66. b7 {[%clk 0:00:03]}  Rxa7 {[%clk 0:00:03]} 67. Kc8 {[%clk 0:00:03]}  Qxb7+ {[%clk 0:00:04]} 68. Kd8 {[%clk 0:00:03]}  Qd7# {[%clk 0:00:04]} 0-1


[Site "https://www.chess.com"]

[Event "Titled Tuesday Blitz August 02 Late 2022"]
[White "Guz, Ari"]
[Black "Sarkar, Justin"]
[WhiteFideId "2825759"]
[BlackFideId "2010011"]
[WhiteElo "1913"]
[BlackElo "2006"]
[Result "1/2-1/2"]
[Round "10"]
[TimeControl "180+1"]
[Date "2022.08.02"]
[WhiteClock "0:00:08"]
[BlackClock "0:00:04"]

1. e4 {[%clk 0:03:00]}  e5 {[%clk 0:02:58]} 2. Nf3 {[%clk 0:03:00]}  Nc6 {[%clk 0:02:58]} 3. Bb5 {[%clk 0:02:56]}  a6 {[%clk 0:02:57]} 4. Ba4 {[%clk 0:02:55]}  Nf6 {[%clk 0:02:55]} 5. O-O {[%clk 0:02:55]}  Be7 {[%clk 0:02:54]} 6. Re1 {[%clk 0:02:52]}  b5 {[%clk 0:02:53]} 7. Bb3 {[%clk 0:02:52]}  d6 {[%clk 0:02:52]} 8. c3 {[%clk 0:02:52]}  O-O {[%clk 0:02:50]} 9. d4 {[%clk 0:02:52]}  Bg4 {[%clk 0:02:49]} 10. d5 {[%clk 0:02:32]}  Na5 {[%clk 0:02:47]} 11. Bc2 {[%clk 0:02:31]}  Qc8 {[%clk 0:02:35]} 12. Nbd2 {[%clk 0:02:24]}  c6 {[%clk 0:02:31]} 13. dxc6 {[%clk 0:02:19]}  Qxc6 {[%clk 0:02:27]} 14. h3 {[%clk 0:02:19]}  Be6 {[%clk 0:02:17]} 15. Nf1 {[%clk 0:02:06]}  Nd7 {[%clk 0:02:06]} 16. Ne3 {[%clk 0:02:03]}  Nc4 {[%clk 0:01:52]} 17. Nd5 {[%clk 0:02:03]}  Bxd5 {[%clk 0:01:48]} 18. exd5 {[%clk 0:02:03]}  Qc7 {[%clk 0:01:42]} 19. g4 {[%clk 0:02:02]}  g6 {[%clk 0:01:35]} 20. Qe2 {[%clk 0:01:44]}  Ncb6 {[%clk 0:01:32]} 21. Bh6 {[%clk 0:01:31]}  Rfe8 {[%clk 0:01:30]} 22. Rad1 {[%clk 0:01:30]}  Qb7 {[%clk 0:01:22]} 23. h4 {[%clk 0:01:22]}  Bf8 {[%clk 0:01:17]} 24. Bxf8 {[%clk 0:01:20]}  Rxf8 {[%clk 0:01:16]} 25. g5 {[%clk 0:01:13]}  Rae8 {[%clk 0:01:13]} 26. Be4 {[%clk 0:01:10]}  Nc5 {[%clk 0:01:08]} 27. h5 {[%clk 0:01:06]}  Qe7 {[%clk 0:01:04]} 28. b4 {[%clk 0:00:57]}  Nxe4 {[%clk 0:00:56]} 29. Qxe4 {[%clk 0:00:58]}  f5 {[%clk 0:00:52]} 30. gxf6 {[%clk 0:00:54]}  Qxf6 {[%clk 0:00:51]} 31. Rd3 {[%clk 0:00:53]}  gxh5 {[%clk 0:00:38]} 32. Kf1 {[%clk 0:00:46]}  Nc4 {[%clk 0:00:34]} 33. Ke2 {[%clk 0:00:43]}  Kh8 {[%clk 0:00:30]} 34. Rg1 {[%clk 0:00:31]}  Qf5 {[%clk 0:00:23]} 35. Qxf5 {[%clk 0:00:25]}  Rxf5 {[%clk 0:00:23]} 36. Ng5 {[%clk 0:00:26]}  e4 {[%clk 0:00:12]} 37. Rdg3 {[%clk 0:00:20]}  e3 {[%clk 0:00:11]} 38. fxe3 {[%clk 0:00:19]}  h4 {[%clk 0:00:11]} 39. Rh3 {[%clk 0:00:18]}  Rg8 {[%clk 0:00:10]} 40. Nf3 {[%clk 0:00:17]}  Rxg1 {[%clk 0:00:09]} 41. Nxg1 {[%clk 0:00:18]}  Rxd5 {[%clk 0:00:09]} 42. Nf3 {[%clk 0:00:17]}  Rf5 {[%clk 0:00:08]} 43. Rxh4 {[%clk 0:00:17]}  d5 {[%clk 0:00:07]} 44. Nd4 {[%clk 0:00:15]}  Re5 {[%clk 0:00:07]} 45. Nc2 {[%clk 0:00:16]}  Kg7 {[%clk 0:00:06]} 46. Rg4+ {[%clk 0:00:16]}  Kf6 {[%clk 0:00:06]} 47. Rh4 {[%clk 0:00:16]}  h5 {[%clk 0:00:05]} 48. Kd3 {[%clk 0:00:16]}  Rg5 {[%clk 0:00:04]} 49. Nd4 {[%clk 0:00:15]}  Rg2 {[%clk 0:00:04]} 50. Ne2 {[%clk 0:00:15]}  Ne5+ {[%clk 0:00:03]} 51. Kd4 {[%clk 0:00:13]}  Nf3+ {[%clk 0:00:04]} 52. Kc5 {[%clk 0:00:13]}  Nxh4 {[%clk 0:00:04]} 53. Nf4 {[%clk 0:00:13]}  Rxa2 {[%clk 0:00:04]} 54. Nxh5+ {[%clk 0:00:13]}  Ke5 {[%clk 0:00:04]} 55. Nf4 {[%clk 0:00:14]}  Nf5 {[%clk 0:00:04]} 56. Nxd5 {[%clk 0:00:14]}  Nxe3 {[%clk 0:00:04]} 57. Nxe3 {[%clk 0:00:14]}  Ra3 {[%clk 0:00:04]} 58. Nd5 {[%clk 0:00:14]}  Rb3 {[%clk 0:00:04]} 59. c4 {[%clk 0:00:14]}  bxc4 {[%clk 0:00:03]} 60. Kxc4 {[%clk 0:00:15]}  Rb1 {[%clk 0:00:04]} 61. Nc3 {[%clk 0:00:14]}  Rc1 {[%clk 0:00:04]} 62. Kd3 {[%clk 0:00:13]}  Rh1 {[%clk 0:00:03]} 63. Na4 {[%clk 0:00:13]}  Rh3+ {[%clk 0:00:03]} 64. Kc4 {[%clk 0:00:13]}  Kd6 {[%clk 0:00:03]} 65. Nc5 {[%clk 0:00:12]}  Kc6 {[%clk 0:00:03]} 66. Nxa6 {[%clk 0:00:08]}  Rh4+ {[%clk 0:00:04]} 67. Kb3 {[%clk 0:00:08]}  Kb5 {[%clk 0:00:04]} 68. Nc7+ {[%clk 0:00:09]}  Kc6 {[%clk 0:00:04]} 69. Na6 {[%clk 0:00:08]}  Kb5 {[%clk 0:00:04]} 70. Nc7+ {[%clk 0:00:08]}  Kc6 {[%clk 0:00:04]} 71. Na6 {[%clk 0:00:08]} 1/2-1/2


[Site "https://www.chess.com"]